[Event "Icelandic Chess-ch 2023"]
[Site "Hafnarfjordur"]
[Date "2023.05.15"]
[Round "1.1"]
[White "Domalchuk-Jonasson, Aleksandr"]
[Black "Ptacnikova, Lenka"]
[Result "0-1"]
[ECO "E18"]
[WhiteElo "2338"]
[BlackElo "2099"]
[Annotator "TA"]
[PlyCount "104"]
[EventDate "2023.05.13"]
[EventType "tourn"]
[EventCountry "ISL"]
[SourceTitle "playchess.com"]
[Source "ChessBase"]
[SourceQuality "1"]
[TimeControl "40/5400+30:1800+30"]

{[%evp 15,104,1,18,14,34,37,32,12,21,11,24,10,27,4,50,33,33,33,41,31,29,34,36,32,34,30,47,35,48,48,70,62,152,31,23,22,22,0,47,39,68,49,51,0,0,0,0,0,0,0,0,-11,0,0,77,-7,-4,-1,-8,-142,0,0,0,0,66,-1208,-1204,-1182,-1182,-1145,-958,-1860,-1854,-1226,-1052,-1168,-1156,-2149,-1977,-5110,-2211,-29978,-29979,-29979,-29980,-29978,-29975,-29974,-29973,-29973,-29974]} 1. d4 {[%emt 0:00:03]} Nf6 {[%emt 0:00:04]} 2. Nf3 {[%emt 0:00:27]} e6 {[%emt 0:00:24]} 3. c4 {[%emt 0:00:10]} b6 {[%emt 0:00:26]} 4. g3 {[%emt 0:00:31]} Bb7 {[%emt 0:00:08]} 5. Bg2 {[%emt 0:00:14]} Be7 {[%emt 0:00:21]} 6. O-O {[%emt 0:00:11]} O-O {[%emt 0:00:08]} 7. Nc3 {[%emt 0:00:23]} Ne4 {[%emt 0:00:33]} 8. Bd2 {[%emt 0:00:35]} Bf6 {[%emt 0:10:01]} 9. Re1 {[%emt 0:01:15] E18: Queen's Indian: Old Main Line (4 g3 Bb7 5 Bg2 Be7 6 0-0 0-0 7 Nc3).} Nxc3 {[%emt 0:04:05]} 10. Bxc3 {[%emt 0:00:21]} Be4 {[%emt 0:00:10] [#]} 11. Nd2 $146 {[%emt 0:19:06] White is slightly better.} ({Predecessor:} 11. Qd2 d6 12. Qf4 Bb7 13. e4 Nd7 14. e5 dxe5 15. dxe5 Be7 16. Rad1 Qc8 17. h4 {1-0 Oparin,G (2667)-Iturrizaga Bonelli,E (2636) Chessable Play In Match rapid 2023 (1.3)}) 11... Bxg2 {[%emt 0:00:20]} 12. Kxg2 {[%emt 0:00:04]} d5 {[%emt 0:02:41]} 13. e4 {[%emt 0:04:48]} c6 {[%emt 0:11:53]} 14. Rc1 {[%emt 0:05:42]} Re8 {[%emt 0:01:26]} (14... a5 $1 $11) 15. Qf3 $14 {[%emt 0:06:10]} Na6 {[%emt 0:09:00]} 16. Qd3 {[%emt 0:14:51] And now cxd5 would win.} Nc7 {[%emt 0:10:17]} 17. b3 {[%emt 0:01:41]} dxe4 {[%emt 0:02:20]} 18. Nxe4 {[%emt 0:01:17]} Be7 {[%emt 0:02:33]} 19. Rcd1 {[%emt 0:06:14]} a5 {[%emt 0:05:11]} 20. a4 {[%emt 0:04:22]} Na6 {[%emt 0:04:46]} 21. Re2 {[%emt 0:04:03]} Nb4 {[%emt 0:07:55]} 22. Qf3 {[%emt 0:05:34]} Rc8 {[%emt 0:03:36]} 23. h4 {[%emt 0:03:14][%cal Od4d5]} Rc7 {[%emt 0:02:45]} (23... Rf8 $14) 24. Ba1 {[%emt 0:07:15]} ({White should play} 24. d5 $1 $16 {[%cal Rd5e6]} cxd5 25. Qg4) 24... Rd7 {[%emt 0:05:30]} 25. Qc3 {[%emt 0:05:32][%cal Od4d5] next d5! is good for White.} Bf8 {[%emt 0:00:15]} 26. Rde1 {[%emt 0:02:31]} Qb8 {[%emt 0:05:25]} (26... Ree7 $11 {feels stronger.}) 27. f4 {[%emt 0:04:07][%cal Of4f5]} Red8 {[%emt 0:00:31]} 28. Qf3 $1 {[%emt 0:00:56]} c5 {[%emt 0:03:49] [#]} 29. d5 {[%emt 0:01:28]} f5 $1 $11 {[%emt 0:02:39]} (29... exd5 $2 30. Nf6+ Kh8 31. Nxd7 $18) 30. Ng5 {[%emt 0:00:56]} exd5 {[%emt 0:00:41]} 31. Ne6 {[%emt 0:00:43][%cal Oa1g7] Strongly threatening Bxg7!} (31. Qh5 g6 32. Qf3 d4 $17) 31... Re8 {[%emt 0:03:45] aiming for ...d4.} 32. cxd5 {[%emt 0:00:39]} Nxd5 {[%emt 0:02:15]} 33. h5 {[%emt 0:00:10][%cal Oh5h6]} Qb7 {[%emt 0:00:26]} 34. h6 {[%emt 0:01:06]} gxh6 {[%emt 0:00:22]} (34... g6 $1 $11) 35. Nxf8 {[%emt 0:00:26]} (35. Kg1 $16) 35... Rxe2+ {[%emt 0:00:38]} 36. Rxe2 {[%emt 0:00:06]} Kxf8 {[%emt 0:00:08]} 37. Kh2 {[%emt 0:01:17] [#]} (37. Kf2 $11 Ne7 38. Qxb7 (38. Qh5 Qc6 $17) 38... Rxb7 39. Re6) 37... Qc6 {[%emt 0:01:02]} ({Of course not} 37... Re7 $6 38. Rxe7 Kxe7 39. Qe2+ Kd7 40. Qd3 $11) (37... Nf6 $1 $17 38. Qxb7 Ng4+ 39. Kg2 Rxb7) 38. Re5 {[%emt 0:00:25]} (38. Qh5 $2 Ne7 39. Qh4 Qg6 $19) 38... Ne7 {[%emt 0:00:10]} 39. Rxf5+ {[%emt 0:00:12][%mdl 64] Deflection} (39. Qxc6 {simplifies} Nxc6 40. Rxf5+ Ke7 41. Rh5) 39... Kg8 {[%emt 0:00:19]} (39... Ke8 $11 40. Qxc6 Nxc6) 40. Qc3 $2 {[%emt 0:00:22][%mdl 8192] White does not recover from this.} ({Reject} 40. Qg4+ $6 Qg6 41. Qxg6+ hxg6 $11) (40. Qxc6 $14 Nxc6 41. Rf6) 40... Nxf5 $19 {[%emt 0:00:16]} 41. Qh8+ {[%emt 0:30:33]} Kf7 {[%emt 0:30:02]} 42. Qxh7+ {[%emt 0:00:09]} Ke8 {[%emt 0:00:54] ( -> ...Rd2+)} 43. Qxf5 {[%emt 0:01:17][%mdl 4096] Endgame KQR-KQB} Rd2+ {[%emt 0:00:04]} 44. Kh3 {[%emt 0:00:01]} Qd7 {[%emt 0:00:00]} 45. Qxd7+ {[%emt 0:00:00]} Rxd7 {[%emt 0:00:00] KR-KB} 46. Kh4 {[%emt 0:00:00]} Kf7 {[%emt 0:00:00] Threatens to win with ...Rd3.} 47. g4 {[%emt 0:00:00]} Rd3 {[%emt 0:00:00]} (47... Rd1 $142 48. Bh8 Rd3) 48. f5 {[%emt 0:00:00]} Rxb3 {[%emt 0:00:00] Black mates.} 49. Be5 {[%emt 0:00:00]} c4 {[%emt 0:00:00]} 50. Bf4 {[%emt 0:00:00]} Kg7 {[%emt 0:00:00]} 51. Be5+ {[%emt 0:00:00]} Kh7 {[%emt 0:00:00]} 52. f6 {[%emt 0:00:00]} Kg6 {[%emt 0:00:53] Weighted Error Value: White=0.75/Black=0.37} 0-1

[Event "Icelandic Chess-ch 2023"]
[Site "Hafnarfjordur"]
[Date "2023.05.15"]
[Round "1.2"]
[White "Ingvason, Johann"]
[Black "Danielsen, Henrik"]
[Result "0-1"]
[ECO "E00"]
[WhiteElo "2076"]
[BlackElo "2501"]
[Annotator "TA"]
[PlyCount "80"]
[EventDate "2023.05.13"]
[EventType "tourn"]
[EventCountry "ISL"]
[SourceTitle "playchess.com"]
[Source "ChessBase"]
[SourceQuality "1"]
[TimeControl "40/5400+30:1800+30"]

{[%evp 9,80,8,24,23,33,21,25,17,27,34,63,8,18,5,16,2,4,4,4,-19,-12,-29,-26,-49,-50,-75,-41,-46,-35,-94,-16,-97,-81,-84,-81,-81,-90,-112,-97,-135,-136,-113,-130,-177,-150,-186,-118,-96,-25,-29,-61,-404,-437,-581,-568,-847,-940,-935,-932,-928,-903,-5185,-2377,-29979,-29980,-29962,-2218,-29988,-29989,-29989,-29990,-29990,-29991]} 1. d4 {[%emt 0:00:04]} Nf6 {[%emt 0:02:07]} 2. c4 {[%emt 0:00:34]} e6 {[%emt 0:01:15]} 3. g3 {[%emt 0:00:17]} Bb4+ {[%emt 0:00:41]} 4. Nd2 {[%emt 0:06:08]} O-O {[%emt 0:01:37]} 5. Bg2 {[%emt 0:01:32]} Be7 {[%emt 0:07:40]} 6. Ngf3 {[%emt 0:00:16] E00: Catalan Bogo-Indian (3 g3 Bb4+).} d6 {[%emt 0:02:07]} 7. O-O {[%emt 0:07:49] [#]} c5 $146 {[%emt 0:04:28]} ({Predecessor:} 7... Nbd7 8. e4 e5 9. Qc2 exd4 10. Nxd4 Nc5 11. b4 Ne6 12. Nf5 a5 13. b5 Nc5 14. Nxe7+ Qxe7 {1-0 Shafigullina,Z (2028)-Garifzyanov,N (1874) Nezhmetdinov Memorial 39th 2017 (5)}) 8. e4 {[%emt 0:17:31] White has an edge.} Nc6 {[%emt 0:03:16][%cal Bb8c6,Bc6b4,Bb4d3,Bd3c1][%mdl 32]} 9. d5 {[%emt 0:09:38]} Nb4 {[%emt 0:08:01][%cal Re6d5]} 10. a3 {[%emt 0:07:03]} (10. Ne1 $14) 10... Nd3 $11 {[%emt 0:03:25]} 11. Qc2 {[%emt 0:00:04]} Nxc1 {[%emt 0:01:08]} 12. Raxc1 {[%emt 0:00:22]} e5 {[%emt 0:03:51]} 13. b4 {[%emt 0:05:02]} b6 {[%emt 0:00:13]} 14. Nh4 {[%emt 0:14:58]} g6 {[%emt 0:00:33]} 15. Bf3 {[%emt 0:06:38]} Bh3 {[%emt 0:06:21]} 16. Ng2 {[%emt 0:00:03]} Nd7 {[%emt 0:00:49]} 17. Be2 {[%emt 0:00:27]} Bg5 {[%emt 0:03:23]} 18. Rb1 {[%emt 0:03:37]} Bh6 {[%emt 0:03:22]} 19. Rb3 {[%emt 0:02:32]} (19. b5 $15) 19... Qe7 {[%emt 0:06:07]} (19... cxb4 $17 {Hoping for ...Nc5.} 20. axb4 a5) 20. g4 {[%emt 0:04:57]} (20. Rfb1 $11) 20... Bxg2 $17 {[%emt 0:02:20]} 21. Kxg2 {[%emt 0:00:04]} cxb4 {[%emt 0:04:06]} 22. axb4 {[%emt 0:00:05]} a5 {[%emt 0:00:05]} 23. bxa5 {[%emt 0:00:08]} bxa5 {[%emt 0:04:12]} 24. Ra3 {[%emt 0:00:15] [#]} ({Reject} 24. Rb7 Qd8 25. Rb2 a4 $17) 24... Bxd2 $1 {[%emt 0:01:04]} 25. Qxd2 {[%emt 0:00:07]} Nc5 {[%emt 0:00:10]} 26. Qe3 {[%emt 0:03:08]} (26. Rfa1 $17 {was necessary.}) 26... a4 {[%emt 0:05:08]} 27. Rfa1 {[%emt 0:01:06]} Kh8 {[%emt 0:01:12]} (27... Rfb8 $19 28. Bd1 Qd7) 28. Bd1 {[%emt 0:00:36][%cal Rd1a4] [#]} f5 {[%emt 0:03:21]} (28... Qd7 $1 $17 29. h3 Rfb8) 29. exf5 $11 {[%emt 0:03:52]} gxf5 {[%emt 0:01:41]} 30. gxf5 {[%emt 0:01:44][%mdl 8192] Now White is beyond hope.} ({Better is} 30. Bxa4 $15 fxg4 31. Bc2 Rxa3 32. Qxa3) 30... Rxf5 $19 {[%emt 0:00:22] White must now prevent ...Rg8+.} ({But not} 30... Qh4 $2 31. Bc2 $19) 31. Qh3 {[%emt 0:02:49]} Raf8 {[%emt 0:01:03]} 32. Rf3 {[%emt 0:00:01]} Rxf3 {[%emt 0:00:24]} 33. Bxf3 {[%emt 0:00:05]} e4 {[%emt 0:01:01]} 34. Bg4 {[%emt 0:00:13]} Qg7 {[%emt 0:04:44]} 35. Ra3 {[%emt 0:00:49]} Nd3 {[%emt 0:00:50] ( -> ...Nf4+)} 36. Qg3 {[%emt 0:01:25] White is weak on the dark squares} Rxf2+ {[%emt 0:02:41]} ({And not} 36... Nxf2 37. Be2 $17) 37. Kg1 {[%emt 0:00:15]} Rf8 {[%emt 0:04:27]} (37... Rc2 $142 38. c5 Qd4+ 39. Kh1 Nf2+ 40. Kg2 Nxg4+ {[%mdl 64] Discovered Attack} 41. Kh3 Nf2+ 42. Kg2 e3 43. Rc3 Qxc3 44. Qh4 Ne4+ {[%mdl 64] Discovered Attack} 45. Kh3 e2+ 46. Kg4 Nf6+ 47. Kf4 Qe5+ 48. Kf3 e1=Q 49. Qxf6+ {[%mdl 64] Remove Defender} Qxf6+ 50. Kg4 Qeh4#) 38. Rxa4 {[%emt 0:01:30]} Qd4+ {[%emt 0:00:36] Black mates.} 39. Kg2 {[%emt 0:00:11]} Rf2+ {[%emt 0:00:40]} 40. Kh3 {[%emt 0:01:48]} Nf4+ {[%emt 0:00:09] Weighted Error Value: White=1.08/Black=0.35} 0-1

[Event "Icelandic Chess-ch 2023"]
[Site "Hafnarfjordur"]
[Date "2023.05.15"]
[Round "1.3"]
[White "Thorfinnsson, Bragi"]
[Black "Ragnarsson, Dagur"]
[Result "1/2-1/2"]
[ECO "C02"]
[WhiteElo "2431"]
[BlackElo "2346"]
[Annotator "TA"]
[PlyCount "156"]
[EventDate "2023.05.13"]
[EventType "tourn"]
[EventCountry "ISL"]
[SourceTitle "playchess.com"]
[Source "ChessBase"]
[SourceQuality "1"]
[TimeControl "40/5400+30:1800+30"]

{[%evp 19,155,17,34,24,16,17,45,53,56,54,46,42,53,31,33,33,36,0,3,0,7,0,10,0,0,0,12,-15,-16,-16,0,0,0,0,0,-35,-25,-23,-9,-14,-16,-16,-13,-21,-13,-11,0,0,20,10,9,6,7,7,20,20,33,29,28,21,44,12,16,11,28,19,22,14,36,40,64,8,7,5,3,0,0,-11,-13,-29,-30,-85,0,-27,-25,-141,-137,-446,-423,-409,-392,-390,-208,-181,-141,-141,-141,-141,-141,-141,-141,-141,-141,-141,-140,-140,-140,-162,-141,-141,-140,-140,-140,-162,-140,-140,-140,-162,-131,-175,-175,-175,-8,-8,-8,-8,-8,-8,-8,-8,-8,-8,-8,-8,-8,-8,-8,-8]} 1. e4 {[%emt 0:00:10]} e6 {[%emt 0:00:07]} 2. d4 {[%emt 0:00:38]} d5 {[%emt 0:00:06]} 3. e5 {[%emt 0:01:56]} c5 {[%emt 0:00:08]} 4. c3 {[%emt 0:00:09]} Nc6 {[%emt 0:00:46]} 5. Nf3 {[%emt 0:00:43]} Qb6 {[%emt 0:00:28]} 6. Be2 {[%emt 0:02:25]} cxd4 {[%emt 0:02:02]} 7. O-O {[%emt 0:03:09]} Bd7 {[%emt 0:03:25]} 8. cxd4 {[%emt 0:10:22]} Nge7 {[%emt 0:00:35]} 9. Nc3 {[%emt 0:01:09] 9.Na3 is the modern continuation.} Nf5 {[%emt 0:01:45]} 10. Na4 {[%emt 0:03:50]} Qa5 {[%emt 0:10:16][%cal Of5d4]} 11. Bd2 {[%emt 0:04:02] C02: French: Advance Variation.} Qd8 {[%emt 0:03:54]} 12. Bf4 {[%emt 0:06:32]} Be7 {[%emt 0:12:21]} 13. g4 {[%emt 0:06:14] White is slightly better.} Nh4 {[%emt 0:12:13]} 14. Nxh4 {[%emt 0:02:26]} Bxh4 {[%emt 0:00:16]} 15. Nc5 {[%emt 0:00:21]} Bc8 {[%emt 0:15:49] [#]} 16. Bg3 $146 {[%emt 0:06:14]} ({Predecessor:} 16. Rc1 O-O 17. Be3 Be7 18. f4 Bxc5 19. Rxc5 Bd7 20. Bd3 Rc8 21. Bb1 Ne7 22. Qd3 {0-1 Pirklova,H (2119)-Matras,O (2241) CZE-chT1W 1617 2016 (2.2)}) 16... O-O {[%emt 0:02:46]} 17. Rc1 {[%emt 0:01:58]} Be7 {[%emt 0:05:11]} 18. a3 {[%emt 0:03:37]} Na5 {[%emt 0:03:05]} 19. Rc3 {[%emt 0:10:05]} b6 {[%emt 0:02:52]} 20. Nd3 {[%emt 0:02:30]} Bb7 {[%emt 0:01:50]} 21. f4 {[%emt 0:03:39]} Rc8 {[%emt 0:02:44]} 22. Rxc8 {[%emt 0:05:16]} Bxc8 {[%emt 0:02:05]} 23. f5 {[%emt 0:01:52]} Nc6 {[%emt 0:00:55]} 24. fxe6 {[%emt 0:08:46]} Bxe6 {[%emt 0:02:06]} 25. Bf2 {[%emt 0:00:38]} Bg5 {[%emt 0:02:34]} 26. Qe1 {[%emt 0:03:15]} Qd7 {[%emt 0:01:00]} 27. h4 {[%emt 0:01:46]} Be7 {[%emt 0:01:42]} 28. Qd1 {[%emt 0:00:19]} f6 {[%emt 0:03:38]} 29. exf6 {[%emt 0:02:08]} Rxf6 {[%emt 0:00:05][%cal Oe6g4] ...Bxg4! would be deadly.} 30. g5 {[%emt 0:01:06]} Rf8 {[%emt 0:01:29]} 31. Be3 {[%emt 0:00:48]} Bf5 {[%emt 0:01:20]} 32. Nf4 {[%emt 0:01:47]} Be4 {[%emt 0:01:55]} 33. Bg4 {[%emt 0:02:10]} Qd6 {[%emt 0:01:56]} 34. Be6+ {[%emt 0:00:53]} Kh8 {[%emt 0:00:04][%cal Of8f4]} 35. Qg4 {[%emt 0:00:19]} Nd8 {[%emt 0:01:54] And now ...Nxe6 would win.} 36. Bd7 {[%emt 0:01:16]} g6 {[%emt 0:00:14]} (36... Qc7 $5 {[%cal Rc7c2]}) 37. Ne2 {[%emt 0:01:37] aiming for Bf4.} Rxf1+ {[%emt 0:01:13]} 38. Kxf1 {[%emt 0:00:04] Black must now prevent Bf4.} Bf8 {[%emt 0:01:19]} 39. Nc3 {[%emt 0:03:03]} Bd3+ {[%emt 0:00:26]} 40. Kg1 {[%emt 0:00:46]} (40. Ke1 $5 {[%cal Re3f4]}) 40... Bg7 {[%emt 0:00:43]} 41. Bf2 {[%emt 0:02:39]} Kg8 {[%emt 0:07:39]} 42. Bc8 {[%emt 0:05:07]} Bc4 {[%emt 0:02:27]} 43. Kg2 {[%emt 0:02:52]} Nc6 {[%emt 0:08:43]} 44. Be6+ {[%emt 0:06:28]} Kh8 {[%emt 0:00:15]} 45. Bf7 {[%emt 0:00:15]} (45. Bd7 $14 Nd8 46. Bb5) 45... Ne7 $11 {[%emt 0:01:29]} 46. Bg3 {[%emt 0:05:28]} Qd8 {[%emt 0:02:23]} 47. Be6 {[%emt 0:01:44] Repels Nf5} Bd3 {[%emt 0:02:13]} 48. h5 {[%emt 0:03:42] Hoping for h6.} Bf5 {[%emt 0:01:50]} 49. Qe2 {[%emt 0:00:43] Threatens to win with h6.} (49. Bxf5 {simplifies} Nxf5 50. Bf2 Bf8 51. Ne2) 49... gxh5 {[%emt 0:01:47]} (49... Bxd4 $2 50. Be5+ Bxe5 51. Qxe5#) 50. Nb5 {[%emt 0:02:47] [#]} (50. Qe3 $11 {keeps the balance.}) 50... h4 {[%emt 0:03:52]} 51. Nd6 {[%emt 0:02:37] Intending Nf7+ and mate.} (51. Bxf5 $5 hxg3 52. Bd3 $11) 51... Bg6 {[%emt 0:00:06]} ({But not} 51... Bxe6 52. Qxe6 Qf8 53. Nf7+ (53. Bxh4 Bxd4 54. Bg3 Ng6 $11) 53... Kg8 54. Nh6+ Kh8 55. Nf7+ (55. Bxh4 Bxd4 56. Bg3 Ng6 $11) 55... Kg8 56. Ne5+ Kh8 57. Nf7+ $14 (57. Bxh4 Bxe5 58. dxe5 Qf5 $11)) 52. Be5 {[%emt 0:00:39]} (52. Bf4 $11) 52... Nc6 $1 $17 {[%emt 0:00:11][%csl LRd4,LRg5][%mdl 64] Discovered Attack} 53. Nf7+ {[%emt 0:01:29][%mdl 8192]} (53. Qe3 $17 {is more resistant.} Nxe5 54. dxe5) 53... Bxf7 $19 {[%emt 0:00:06]} 54. Bxf7 {[%emt 0:00:03]} Qxg5+ {[%emt 0:00:27]} (54... Nxd4 55. Qe3 Nc2 56. Qf4 Ne1+ 57. Kh1 $17) 55. Kh1 {[%emt 0:00:18]} Nxe5 {[%emt 0:02:23]} ({Stronger than} 55... Nxd4 56. Bxd4 Bxd4 57. Qe8+ Kg7 58. Qg8+ Kh6 59. Qf8+ Qg7 60. Qxg7+ Bxg7 61. Bxd5 $17) (55... Bxe5 $142 56. dxe5 Ne7) 56. dxe5 {[%emt 0:00:11]} Qxe5 {[%emt 0:00:50]} 57. Qxe5 {[%emt 0:00:51]} Bxe5 {[%emt 0:00:05]} 58. Bxd5 {[%emt 0:00:55]} Bxb2 {[%emt 0:00:07][%mdl 4096] Endgame KB-KB} 59. a4 {[%emt 0:00:08]} Be5 {[%emt 0:01:23]} 60. Kg2 {[%emt 0:00:22]} Kg7 {[%emt 0:00:40]} 61. Kh3 {[%emt 0:00:25]} Bg3 {[%emt 0:00:06]} 62. Bc6 {[%emt 0:00:09]} Kf6 {[%emt 0:00:06]} 63. Kg2 {[%emt 0:00:11]} Ke5 {[%emt 0:00:06]} 64. Kh3 {[%emt 0:00:29]} Kd6 {[%emt 0:00:05]} 65. Be8 {[%emt 0:00:20]} a6 {[%emt 0:00:05]} 66. Kg2 {[%emt 0:00:07]} Be1 {[%emt 0:02:01]} 67. Kh3 {[%emt 0:00:26]} Kc5 {[%emt 0:00:12]} 68. Kg2 {[%emt 0:00:31]} b5 {[%emt 0:00:06]} 69. Bxb5 {[%emt 0:01:23]} axb5 {[%emt 0:00:06]} 70. axb5 {[%emt 0:00:04][%cal Ob5b6] [#]} Kxb5 $2 {[%emt 0:00:04]} (70... Kb6 $1 $19 {[%cal Oe1g3] ...Bg3! is the strong threat.} 71. Kh3 Bg3) 71. Kh1 {[%emt 0:00:55] The position is equal.} Kc4 {[%emt 0:00:06][%cal Bb5c4,Bc4d3,Bd3e3,Be3e2,Be2f1][%mdl 32]} 72. Kg2 {[%emt 0:00:26]} Kd3 {[%emt 0:00:06]} 73. Kh2 {[%emt 0:00:23]} Ke3 {[%emt 0:00:03]} 74. Kg2 {[%emt 0:00:14]} Ke2 {[%emt 0:00:29]} 75. Kg1 {[%emt 0:00:46]} h6 {[%emt 0:00:27]} 76. Kg2 {[%emt 0:00:17]} Bf2 {[%emt 0:00:06]} 77. Kh2 {[%emt 0:00:51]} Kf1 {[%emt 0:00:06]} 78. Kh1 {[%emt 0:00:29]} Bg1 {[%emt 0:00:27] And White is the lucky defender.   Weighted Error Value: White=0.22 (precise) /Black=0.14 (very precise)} 1/2-1/2

[Event "Icelandic Chess-ch 2023"]
[Site "Hafnarfjordur"]
[Date "2023.05.15"]
[Round "1.4"]
[White "Stefansson, Hannes"]
[Black "Kjartansson, Gudmundur"]
[Result "0-1"]
[ECO "C65"]
[WhiteElo "2521"]
[BlackElo "2402"]
[Annotator "TA"]
[PlyCount "140"]
[EventDate "2023.05.13"]
[EventType "tourn"]
[EventCountry "ISL"]
[SourceTitle "playchess.com"]
[Source "ChessBase"]
[SourceQuality "1"]
[TimeControl "40/5400+30:1800+30"]

{[%evp 9,140,7,27,0,0,0,0,0,0,0,0,0,0,0,0,0,0,0,0,0,0,0,0,0,7,0,0,-18,-25,-8,-27,-19,-6,0,-8,-12,-15,-20,-10,-156,-141,-241,-65,-52,-26,-31,-29,-32,-26,-26,-43,-31,-34,-35,-40,-117,-96,-86,-30,-33,-14,-14,-16,-16,-16,-16,-13,-14,-14,-9,-8,-8,-8,-8,0,-45,-35,-37,-36,-37,-21,-21,-14,-20,-14,-41,-37,-45,-45,-37,-30,-54,-54,-54,-54,-85,-84,-90,-79,-205,-205,-185,-194,-223,-223,-254,-252,-245,-244,-454,-452,-469,-470,-640,-440,-418,-439,-413,-413,-390,-299,-345,-328,-4137,-4137,-29985,-29985,-29985,-29985,-29986,-29987,-29987,-29988]} 1. e4 {[%emt 0:00:07]} e5 {[%emt 0:00:19]} 2. Nf3 {[%emt 0:00:33]} Nc6 {[%emt 0:00:04]} 3. Bb5 {[%emt 0:02:26]} Nf6 {[%emt 0:00:11]} 4. d3 {[%emt 0:04:25]} Bc5 {[%emt 0:00:17]} 5. c3 {[%emt 0:00:58]} d5 {[%emt 0:03:08]} 6. Qc2 {[%emt 0:05:41] C65: Ruy Lopez: Berlin Defence (3...Nf6), unusual lines and 4 0-0 Bc5.} dxe4 {[%emt 0:13:04]} 7. dxe4 {[%emt 0:00:07]} Qe7 {[%emt 0:00:42]} 8. O-O {[%emt 0:00:33] The position is equal.} O-O {[%emt 0:02:26]} 9. a4 {[%emt 0:04:25]} a5 {[%emt 0:00:30]} 10. Nbd2 {[%emt 0:01:46]} Nb8 {[%emt 0:04:27]} 11. Nb3 {[%emt 0:02:46]} Bb6 {[%emt 0:01:16] [#]} 12. Nfd2 $146 {[%emt 0:03:28]} ({Predecessor:} 12. Bg5 Bg4 13. Be2 Nbd7 14. h3 Be6 15. Nbd2 c6 16. Nc4 Bc7 17. Ne3 h6 18. Bh4 {½-½ Vokhidov,S (2552)-Bok,B (2616) Chess.com Rapid Wk20 Swiss 2022 (4)}) 12... c6 {[%emt 0:06:23]} 13. Be2 {[%emt 0:01:36]} Be6 {[%emt 0:02:06]} 14. Nc4 {[%emt 0:02:13]} Bc7 {[%emt 0:02:47]} 15. Bg5 {[%emt 0:04:16]} Nbd7 {[%emt 0:01:43]} 16. Bh4 {[%emt 0:04:54]} h6 {[%emt 0:04:36]} 17. Rfd1 {[%emt 0:08:34]} Rfd8 {[%emt 0:02:24]} 18. f3 {[%emt 0:02:49]} b5 {[%emt 0:11:38]} 19. axb5 {[%emt 0:15:57]} a4 {[%emt 0:01:28]} 20. Nbd2 {[%emt 0:00:59]} cxb5 {[%emt 0:00:30]} 21. Na3 {[%emt 0:01:18]} b4 {[%emt 0:06:41]} 22. cxb4 {[%emt 0:01:19]} Bb6+ {[%emt 0:00:32]} 23. Kh1 {[%emt 0:01:10]} Qxb4 {[%emt 0:01:01]} 24. Nb5 {[%emt 0:03:38]} (24. Ndc4 $11 {keeps the balance.}) 24... Rdc8 $17 {[%emt 0:01:39] Black is more active.} 25. Qb1 {[%emt 0:00:37]} (25. Qd3 $17) 25... Ra5 $2 {[%emt 0:07:21]} ({Black should play} 25... Nh5 $19 {Hoping for ...g5.} 26. Bd3 Nf4) 26. Na3 $1 $15 {[%emt 0:07:39][%cal Od2c4]} Bd4 {[%emt 0:04:28] White must now prevent ...Rac5.} 27. Nc2 {[%emt 0:00:19]} Qxb2 {[%emt 0:02:18]} 28. Nxd4 {[%emt 0:00:15]} Qxb1 {[%emt 0:00:14]} ({Don't do} 28... Qxd4 29. Nc4 $14) 29. Nxb1 {[%emt 0:00:42] Nxe6 would be deadly.} exd4 {[%emt 0:00:13]} 30. Rxd4 {[%emt 0:05:15]} Nc5 {[%emt 0:03:20] aiming for ...Nb3.} 31. Rd1 $1 {[%emt 0:00:38]} Nb3 {[%emt 0:01:28] Excellent horsemanship.} 32. Ra3 {[%emt 0:00:32]} (32. Be1 $1 $15) 32... Rac5 $1 $17 {[%emt 0:04:07] Threatens to win with ...Rc1.} 33. Be1 {[%emt 0:03:58] [#]} (33. Rxa4 $2 Rc2 34. Re1 g5 $19) 33... Rc2 {[%emt 0:06:35]} ({Better is} 33... Nd4 $1 $17 {[%cal Rd4e2]} 34. Bf2 (34. Rxd4 $2 {too greedy.} Rc1 $19) 34... Nxe2 35. Bxc5 Rxc5 36. Rxa4 Bb3 37. Ra8+ Kh7) 34. Nc3 $11 {[%emt 0:00:41]} R2xc3 {[%emt 0:01:20]} 35. Bxc3 {[%emt 0:00:08]} Rxc3 {[%emt 0:00:03]} 36. Bb5 {[%emt 0:01:31] [#]} Nd7 $1 {[%emt 0:05:56]} 37. Bxa4 {[%emt 0:01:30]} Ndc5 {[%emt 0:00:15]} 38. Bxb3 {[%emt 0:00:19]} Nxb3 {[%emt 0:00:10]} 39. h4 {[%emt 0:03:06]} g5 {[%emt 0:00:48]} 40. hxg5 {[%emt 0:00:13]} hxg5 {[%emt 0:00:02]} 41. Kh2 {[%emt 0:32:16]} Kg7 {[%emt 0:31:10]} 42. Ra8 {[%emt 0:00:00]} Rc2 {[%emt 0:00:00]} 43. Rad8 {[%emt 0:00:00]} Kf6 {[%emt 0:00:00]} 44. Kg3 {[%emt 0:00:00]} Na5 {[%emt 0:00:00]} 45. R8d2 {[%emt 0:00:00]} Rc3 {[%emt 0:00:00]} 46. Rd3 {[%emt 0:00:00]} Rc5 {[%emt 0:00:00]} 47. Kf2 {[%emt 0:00:00]} Nc6 {[%emt 0:00:00]} 48. R1d2 {[%emt 0:00:00]} Ne5 {[%emt 0:00:00]} 49. Re3 {[%emt 0:00:00]} Rc1 {[%emt 0:00:00]} 50. Re1 {[%emt 0:00:00]} Rc3 {[%emt 0:00:00] Strongly threatening ...Nd3+.} 51. Ra1 {[%emt 0:00:00]} g4 {[%emt 0:00:00][%cal Rg4f3]} 52. fxg4 {[%emt 0:00:00]} Nxg4+ {[%emt 0:00:00]} 53. Kg1 {[%emt 0:00:00]} Ke5 {[%emt 0:00:00]} 54. Rb2 {[%emt 0:00:48] Now White is beyond hope.} (54. Re2 $17 {might work better.}) 54... Kxe4 $19 {[%emt 0:00:00]} 55. Rb4+ {[%emt 0:00:59]} Kf5 {[%emt 0:00:00]} 56. Rb5+ {[%emt 0:01:37] [#]} Kg6 $1 {[%emt 0:00:00]} 57. Rb2 {[%emt 0:01:49]} Bd5 {[%emt 0:00:00]} 58. Rd2 {[%emt 0:00:11]} Be4 {[%emt 0:06:14]} 59. Rda2 $2 {[%emt 0:05:49]} (59. Kf1) 59... Rg3 {[%emt 0:00:00]} 60. Re1 {[%emt 0:00:40]} f5 {[%emt 0:00:00]} 61. Rae2 {[%emt 0:00:12]} Rc3 {[%emt 0:00:00] ...Ra3 is the strong threat.} 62. Ra2 {[%emt 0:00:55]} Kg5 {[%emt 0:00:00]} 63. Rea1 {[%emt 0:02:35]} Rg3 {[%emt 0:00:00]} 64. Re1 {[%emt 0:00:22]} Kh4 {[%emt 0:02:11]} 65. Rea1 {[%emt 0:00:50]} Ne3 {[%emt 0:01:58]} 66. Re1 $2 {[%emt 0:00:14]} (66. Kf2) 66... Nxg2 {[%emt 0:02:11]} ({Worse is} 66... Rxg2+ 67. Rxg2 Nxg2 68. Rxe4+ fxe4 69. Kxg2 $11) 67. Rxe4+ {[%emt 0:00:08]} fxe4 {[%emt 0:01:04][%cal Bf5e4,Be4e3][%mdl 32] Black mates.} 68. Rxg2 {[%emt 0:00:07]} Kg4 {[%emt 0:00:31]} 69. Kf1 {[%emt 0:01:21]} Rxg2 {[%emt 0:00:02]} 70. Kxg2 {[%emt 0:00:07]} e3 {[%emt 0:00:02] Weighted Error Value: White=0.19 (very precise) /Black=0.08 (flawless)} 0-1